bitfinex/quotes_ETHUSD_20260203
["timestamp","ask_amount","ask_price","bid_price","bid_amount"]
[1770153649164,12.21568499,2304.8,2303.5,0.001]
[1770153649364,0.91,2304.7,2303.5,0.001]
[1770153649569,13.12568499,2304.7,2303.5,0.001]
[1770153649735,12.21568499,2304.7,2303.5,0.001]
[1770153649936,0.91,2304.6,2303.5,0.001]
[1770153650764,0.91,2304.9,2303.5,0.001]
[1770153651317,4.34402955,2305.5,2303.5,0.001]
[1770153651318,12.78627564,2305.7,2303.7,0.00656038]
[1770153651578,13.69627564,2305.5,2303.7,2.05276794]
[1770153652338,12.78627564,2305.1,2303.7,2.05276794]
[1770153652541,0.00656038,2305.2,2303.5,0.001]
[1770153652542,13.69627564,2305.0,2303.5,0.001]
[1770153653087,12.79283602,2304.8,2303.5,0.001]
[1770153653246,12.78627564,2304.8,2303.5,0.001]
[1770153654447,11.9146174,2304.6,2303.5,0.001]
[1770153654774,2.10211778,2304.5,2303.5,0.001]
[1770153654985,14.02329556,2304.5,2303.5,0.001]
[1770153656177,0.91,2304.4,2303.5,0.001]
[1770153656778,13.10673518,2304.5,2303.5,0.001]
[1770153656779,0.91,2304.5,2303.5,0.001]
[1770153657848,0.91,2304.8,2303.5,0.001]
[1770153658038,11.9146174,2305.3,2303.5,0.001]
[1770153658243,2.10146174,2305.2,2303.5,0.001]
[1770153658554,2.10146174,2305.2,2303.6,0.2335703]
[1770153658555,0.91,2305.1,2303.6,0.2335703]
[1770153658754,11.9146174,2305.3,2303.7,0.00656038]
[1770153659071,12.8246174,2305.3,2303.6,12.27358021]
[1770153659776,12.8246174,2305.3,2303.5,0.001]
[1770153659777,11.9146174,2304.8,2303.5,0.001]
[1770153659957,0.91,2304.7,2303.5,0.001]
[1770153661878,12.8246174,2304.7,2303.5,0.001]
[1770153662659,11.92117778,2304.3,2302.5,0.001]
[1770153662859,11.9146174,2304.1,2302.5,0.001]
[1770153663175,11.9146174,2304.1,2302.5,1.22921406]
[1770153663176,11.92117778,2304.1,2302.5,1.22921406]
[1770153663368,0.00656038,2304.0,2302.5,0.001]
[1770153663568,11.9146174,2303.9,2302.5,0.001]
[1770153663893,0.00656038,2304.0,2302.5,0.001]
[1770153663894,12.8246174,2303.8,2302.5,0.001]
[1770153664049,0.02171,2303.6,2302.5,0.001]
[1770153664676,12.8246174,2304.5,2302.8,0.24013068]
[1770153664878,12.8246174,2304.5,2302.9,0.40294935]
[1770153665081,12.8246174,2304.5,2303.0,0.40294935]
[1770153665260,12.8246174,2304.5,2302.8,1.53310878]
[1770153665261,12.8246174,2304.5,2303.1,0.40294935]
[1770153665576,12.8246174,2304.5,2302.8,1.53310878]
[1770153665780,12.8246174,2304.5,2302.9,0.40425968]
[1770153665781,11.92117778,2304.3,2302.9,0.40425968]
[1770153665949,0.00656038,2304.2,2302.5,0.001]
[1770153666260,12.83117778,2304.1,2302.6,0.40433664]
[1770153666471,12.83117778,2304.1,2302.5,0.001]
[1770153666673,12.83117778,2304.1,2302.6,0.40454699]
[1770153666886,11.92117778,2303.9,2302.5,0.001]
[1770153667098,11.92117778,2303.2,2302.5,0.001]
[1770153667264,0.00656038,2303.4,2301.7,0.1114737]
[1770153667265,12.8246174,2303.1,2301.7,0.1114737]
[1770153667464,12.8246174,2303.1,2301.8,0.40462709]
[1770153667693,12.8246174,2303.1,2301.7,0.1114737]
[1770153667898,1.16905766,2303.5,2301.7,0.1114737]
[1770153667899,1.16249728,2303.5,2302.2,0.00656038]
[1770153668081,3.0988676,2304.1,2302.2,0.00656038]
[1770153668082,11.9146174,2304.5,2302.9,0.00656038]
[1770153668289,0.68128717,2304.6,2302.9,0.00656038]
[1770153668290,11.9146174,2304.4,2303.0,0.41121025]
[1770153668497,11.9146174,2304.2,2302.7,0.00656038]
[1770153668665,0.91,2304.4,2303.3,0.00656038]
[1770153668993,11.9146174,2304.6,2303.5,0.00656038]
[1770153668994,12.8246174,2304.6,2303.5,0.00656038]
[1770153669189,12.8246174,2304.6,2303.4,0.00656038]
[1770153669504,12.8246174,2304.6,2302.8,0.00656038]
[1770153669678,12.8246174,2304.6,2303.1,0.41130598]
[1770153669881,12.8246174,2304.6,2303.1,0.00656038]
[1770153670198,13.90941246,2304.6,2302.8,0.00656038]
[1770153670378,13.90941246,2304.6,2302.5,0.00656038]
[1770153670379,13.90941246,2304.6,2303.1,0.40485239]
[1770153670690,11.9146174,2304.4,2302.4,0.91656038]
[1770153670863,11.9146174,2304.4,2302.5,0.41145353]
[1770153671068,11.9146174,2304.2,2302.6,0.41145353]
[1770153671276,12.8246174,2304.1,2302.7,0.40489315]
[1770153671676,1.09135544,2304.6,2303.2,0.00656038]
[1770153671677,11.9146174,2304.6,2303.2,0.00656038]
[1770153671864,11.9146174,2304.6,2303.3,0.40493036]
[1770153672080,12.99941967,2304.6,2302.9,0.00656038]
[1770153672266,11.9146174,2304.6,2303.0,0.40505836]
[1770153672467,12.99941045,2304.6,2303.1,0.40505836]
[1770153672769,11.9146174,2304.4,2302.7,0.00656038]
[1770153673094,1.09135343,2304.6,2302.8,0.40510237]
[1770153673095,11.9146174,2304.2,2302.8,0.40510237]
[1770153673294,11.9146174,2304.1,2302.9,0.40510237]
[1770153673497,11.9146174,2304.1,2302.6,0.00656038]
[1770153673799,11.9146174,2304.1,2302.7,0.40518016]
[1770153674097,11.9146174,2304.1,2302.8,0.40518016]
[1770153674293,11.9146174,2304.5,2303.0,0.00656038]
[1770153674497,0.91,2304.4,2303.1,0.40515565]
[1770153674697,0.91,2304.4,2303.2,0.40515565]
[1770153674999,0.91,2304.4,2303.0,0.00656038]
[1770153675197,0.91,2304.4,2303.1,0.40512225]
[1770153675397,12.8246174,2304.4,2302.7,0.001]
[1770153675702,0.0011,2303.9,2302.9,0.00656038]
[1770153675900,0.0011,2303.9,2303.0,0.41171833]
[1770153676103,0.0011,2303.9,2302.8,0.00656038]
[1770153676403,0.0011,2303.9,2302.9,0.40542355]
[1770153676605,0.0011,2303.9,2303.0,0.40542355]
[1770153676904,0.0011,2303.9,2303.1,0.40542355]
[1770153677200,0.0011,2303.9,2303.2,0.40542355]
[1770153677499,0.0011,2303.9,2302.9,0.00656038]
[1770153677700,0.0011,2303.9,2303.0,0.40566599]
[1770153677896,0.0011,2303.9,2303.1,0.40566599]
[1770153678102,0.0011,2303.9,2303.2,0.40566599]
[1770153678301,0.0011,2303.9,2302.8,0.00656038]
[1770153678509,0.0011,2303.9,2302.9,0.40565656]
[1770153678673,0.0011,2303.9,2303.0,0.40565656]
[1770153679591,0.0011,2303.9,2302.7,0.00756038]
[1770153679592,0.0011,2303.9,2303.1,0.40565656]
[1770153679899,0.0011,2303.9,2303.2,0.40568051]
[1770153680091,0.0011,2303.9,2302.8,0.00656038]
[1770153680293,0.0011,2303.9,2302.9,0.40570317]
[1770153680471,0.0011,2303.9,2303.0,0.40570317]
[1770153680671,0.0011,2303.9,2303.1,0.40570317]
[1770153680990,0.0011,2303.9,2302.7,0.001]
[1770153680991,12.43983106,2303.8,2302.7,0.001]
[1770153681384,0.911,2303.7,2302.7,0.001]
[1770153684086,0.911,2303.7,2303.0,1.0]
[1770153685893,0.0011,2303.9,2303.0,1.0]
[1770153687407,0.0011,2303.9,2302.7,0.001]
[1770153687408,12.44093106,2303.9,2302.7,0.001]
[1770153687614,12.43903106,2303.7,2302.7,0.001]
[1770153687910,12.43983106,2303.5,2302.7,0.001]
[1770153688113,0.911,2303.4,2302.7,0.001]
[1770153688415,13.35083106,2303.4,2302.7,0.001]
[1770153689514,0.911,2303.4,2302.7,0.001]
[1770153689813,0.911,2303.4,2302.9,0.001]
[1770153690582,0.0011,2303.5,2302.9,0.001]
[1770153697412,0.0011,2303.7,2303.0,0.40546655]
[1770153697719,0.0011,2303.7,2303.1,0.40546655]
[1770153697923,0.0011,2303.7,2302.9,0.001]
[1770153698091,0.0011,2303.7,2303.0,0.40545016]
[1770153698292,0.0011,2303.7,2303.1,0.40545016]
[1770153698593,0.0011,2303.7,2302.9,0.001]
[1770153698793,0.0011,2303.7,2303.0,0.40565397]
[1770153699015,0.0011,2303.9,2303.1,0.40565397]
[1770153699295,0.0011,2303.9,2303.2,0.40582315]
[1770153699511,0.0011,2303.9,2302.9,0.001]
[1770153699706,0.0011,2303.9,2303.0,0.40583444]
[1770153699906,0.0011,2303.9,2303.1,0.40583444]
[1770153700137,0.0011,2303.9,2302.9,0.001]
[1770153700418,0.0011,2303.9,2303.0,0.40564072]
[1770153700715,0.0011,2303.9,2303.1,0.40564072]
[1770153700899,0.0011,2303.9,2303.2,0.40564072]
[1770153701316,2.31531468,2304.7,2303.4,0.00656038]
[1770153701317,12.43983106,2304.7,2303.4,0.00656038]
[1770153701518,12.43983106,2304.7,2303.5,0.40564072]
[1770153701519,0.93662947,2304.6,2303.5,0.40564072]
[1770153701818,12.43983106,2304.7,2303.6,0.40564072]
[1770153702117,12.43983106,2304.7,2303.3,0.91756038]
[1770153702118,12.43983106,2304.7,2303.7,0.40564072]
[1770153702319,12.43983106,2304.7,2303.8,0.40564072]
[1770153702515,12.43983106,2304.7,2303.4,0.00656038]
[1770153702817,12.43983106,2304.7,2303.5,0.40423443]
[1770153702995,12.43983106,2304.7,2303.6,0.40423443]
[1770153703201,12.43983106,2304.7,2303.7,0.40423443]
[1770153703398,0.911,2305.0,2303.5,1.09185575]
[1770153703603,0.93577477,2304.9,2303.7,0.00656038]
[1770153703798,0.911,2305.0,2303.8,0.40383755]
[1770153704022,0.93573759,2304.9,2303.9,0.40383755]
[1770153704220,0.911,2305.0,2303.6,0.00656038]
[1770153704518,0.911,2305.0,2303.7,0.41006184]
[1770153704717,0.911,2305.0,2303.8,0.40350146]
[1770153705018,0.911,2305.0,2304.0,0.00656038]
[1770153705218,0.911,2305.0,2303.7,0.00656038]
[1770153705389,0.911,2305.0,2303.8,0.40300254]
[1770153705593,0.0011,2305.3,2303.9,0.40300254]
[1770153705794,0.0011,2305.3,2303.7,0.00656038]
[1770153705795,0.93450829,2305.2,2303.7,0.00656038]
[1770153705990,0.0011,2304.7,2303.8,0.40297877]
[1770153706725,0.0011,2304.7,2303.9,0.40297877]
[1770153706929,0.0011,2304.7,2304.0,0.40297877]
[1770153707115,0.0011,2304.7,2303.6,11.97033493]
[1770153707313,0.0011,2304.7,2303.7,1.70881459]
[1770153707514,0.0011,2304.7,2303.7,1.30621739]
[1770153707824,0.0011,2304.7,2303.4,0.91]
[1770153708128,0.0011,2304.7,2303.7,12.81540914]
[1770153708424,0.0011,2304.9,2303.9,11.73020425]
[1770153708718,0.0011,2304.9,2304.0,0.40253235]
[1770153708913,0.0011,2304.9,2303.6,11.73020425]
[1770153709115,0.0011,2304.9,2303.7,1.57534071]
[1770153709309,0.0011,2304.9,2303.8,0.40232028]
[1770153709521,0.00766038,2305.3,2303.9,12.13252453]
[1770153709722,1.56871203,2305.9,2303.7,1.17302043]
[1770153709723,0.0011,2305.9,2304.4,11.73676463]
[1770153709899,0.0011,2305.9,2304.5,3.25788835]
[1770153710100,0.0011,2305.9,2304.6,0.40232028]
[1770153710101,12.44093106,2305.9,2304.6,0.40232028]
[1770153710298,12.44093106,2305.9,2304.5,0.91]
[1770153710521,12.44093106,2305.9,2304.1,12.72593911]
[1770153710823,11.98360463,2305.8,2304.4,0.91]
[1770153711122,11.98360463,2305.8,2304.5,0.40141862]
[1770153711323,11.98360463,2305.8,2304.4,0.91]
[1770153712122,11.98360463,2305.8,2304.5,0.40187695]
[1770153712300,11.98360463,2305.8,2304.4,1.99487645]
[1770153712501,0.9111,2305.9,2304.5,1.03572829]
[1770153712707,0.9111,2305.9,2304.5,0.63411233]
[1770153712897,12.89470463,2305.9,2304.5,0.63411233]
[1770153713098,11.99016501,2305.5,2304.2,1.27324995]
[1770153713323,11.98360463,2305.1,2303.7,1.17302043]
[1770153713524,11.98360463,2305.1,2303.2,12.49236881]
[1770153713525,11.98360463,2305.1,2303.6,0.91]
[1770153713725,11.98360463,2305.1,2303.7,0.40221692]
[1770153713899,11.98360463,2305.1,2303.6,13.40236881]
[1770153714100,11.98360463,2305.1,2303.6,0.91]
[1770153715622,12.89360463,2305.1,2303.7,0.40200848]
[1770153715825,0.91,2305.1,2303.7,2.58388716]
[1770153716427,12.53622937,2305.5,2303.8,12.93245377]
[1770153716732,12.53622937,2305.5,2303.9,0.40200595]
[1770153716915,12.53622937,2305.5,2303.7,1.0852056]
[1770153717114,12.53622937,2305.5,2303.8,0.40192529]
[1770153717317,12.53622937,2305.5,2303.9,0.40192529]
[1770153717513,12.53622937,2305.5,2303.6,2.00178283]
[1770153717825,12.53622937,2305.5,2303.7,0.40207679]
[1770153718030,12.53622937,2305.5,2303.8,0.40863717]
[1770153718216,12.53622937,2305.5,2303.9,0.40207679]
[1770153718422,12.53622937,2305.3,2303.7,12.52388744]
[1770153718618,12.53622937,2305.3,2303.8,0.40231991]
[1770153718806,12.53622937,2305.3,2303.9,0.40231991]
[1770153719015,12.53622937,2305.3,2303.7,12.52388744]
[1770153719236,12.53622937,2305.3,2303.8,0.91]
[1770153719431,12.53622937,2305.4,2303.8,0.911]
[1770153721430,13.62064629,2305.4,2303.8,0.911]
[1770153721630,12.54278975,2305.2,2303.8,0.911]
[1770153721932,12.54278975,2304.8,2303.8,0.001]
[1770153722117,12.53622937,2304.6,2303.8,0.001]
[1770153722314,0.91,2304.5,2303.8,0.001]
[1770153722510,13.44622937,2304.5,2303.8,0.001]
[1770153725048,13.44622937,2305.3,2303.8,0.001]
[1770153725245,0.91,2305.3,2303.9,0.40841079]
[1770153725445,0.91,2305.3,2303.9,1.38498586]
[1770153725446,13.44622937,2305.3,2303.9,1.38498586]
[1770153725647,12.53622937,2305.1,2303.8,0.001]
[1770153725949,12.53622937,2304.9,2303.8,0.001]
[1770153726150,13.44622937,2304.8,2303.8,0.001]
[1770153726825,12.53622937,2304.6,2303.8,0.001]
[1770153727447,12.53622937,2304.5,2303.8,0.001]
[1770153727630,0.91,2304.4,2303.8,0.001]
[1770153728026,13.44622937,2304.4,2303.8,0.001]
[1770153729932,13.44622937,2304.4,2303.5,0.001]
[1770153730334,13.44622937,2304.4,2303.1,0.001]
[1770153730534,13.44622937,2304.4,2303.2,0.40289268]
[1770153730535,12.53622937,2304.4,2303.2,0.40289268]
[1770153730755,13.44622937,2304.4,2303.6,0.00656038]
[1770153730953,13.44622937,2304.4,2303.3,0.00656038]
[1770153731130,13.44622937,2304.4,2303.4,0.00656038]
[1770153731755,12.53622937,2304.4,2303.4,0.00656038]
[1770153732055,1.56105165,2305.0,2303.9,0.00656038]
[1770153732056,12.53622937,2304.9,2303.9,0.00656038]
[1770153732555,3.40075721,2305.6,2303.9,0.00656038]
[1770153732556,1.16684508,2305.5,2304.6,0.00656038]
[1770153732747,1.56215165,2305.6,2304.9,0.00656038]
[1770153732748,0.0011,2305.6,2304.9,0.00656038]
[1770153733173,0.0011,2305.8,2305.3,0.00656038]
[1770153733333,0.0011,2305.8,2304.8,0.00656038]
[1770153733657,0.0011,2305.8,2305.2,0.00656038]
[1770153733956,0.0011,2305.9,2305.5,0.00656038]
[1770153734135,0.0011,2306.1,2305.6,0.00656038]
[1770153734667,12.53732937,2306.5,2305.7,0.00656038]
[1770153734965,12.53732937,2306.5,2305.9,0.00656038]
[1770153734966,0.0011,2306.5,2305.9,0.00656038]
[1770153735427,0.0011,2306.5,2306.1,0.00656038]
[1770153735628,0.0011,2307.1,2306.4,0.00656038]
[1770153735852,0.0011,2307.1,2306.3,0.00656038]
[1770153735853,0.0011,2307.1,2306.0,0.00656038]
[1770153736059,0.0011,2307.1,2306.1,0.39895546]
[1770153736351,0.0011,2307.1,2306.0,2.41196811]
[1770153737247,12.53732937,2307.1,2306.0,1.50196811]
[1770153737441,13.44732937,2307.1,2306.0,1.50196811]
[1770153738051,13.44732937,2307.1,2305.7,0.91]
[1770153738247,13.44732937,2307.1,2305.6,15.0]
[1770153738640,13.44732937,2307.1,2305.4,0.91]
[1770153739259,12.53622937,2306.9,2305.3,15.0]
[1770153739564,12.53622937,2306.9,2305.3,15.00656038]
[1770153739765,12.53622937,2306.9,2305.4,16.50131208]
[1770153741562,12.95145981,2306.4,2305.4,2.0]
[1770153741730,12.95145981,2306.4,2304.3,4.3396987]
[1770153741731,0.91,2306.3,2304.9,11.80596201]
[1770153741927,12.95145981,2306.8,2305.1,11.80596201]
[1770153742132,0.91,2306.7,2305.1,11.80596201]
[1770153742336,0.91,2306.7,2305.2,1.1805962]
[1770153742635,13.86145981,2306.7,2305.2,1.1805962]
[1770153742856,12.95145981,2306.5,2304.9,0.91]
[1770153743532,0.91,2306.7,2305.1,0.00656038]
[1770153743861,0.91,2306.7,2305.1,11.81252239]
[1770153745477,0.0011,2307.1,2305.3,11.80596201]
[1770153745640,0.91,2307.0,2305.3,11.80596201]
[1770153745957,0.91,2307.0,2305.4,1.18125224]
[1770153746171,0.91,2307.0,2305.5,0.91]
[1770153746568,0.0011,2307.1,2305.5,13.8068645]
[1770153746734,0.0011,2307.1,2305.5,12.72252239]
[1770153747067,0.0011,2307.1,2305.5,13.80687857]
[1770153747377,0.0011,2307.1,2305.6,1.49946912]
[1770153747539,0.0011,2306.7,2305.6,1.49946912]
[1770153747741,0.0011,2306.7,2305.6,13.30543113]
[1770153749071,0.0011,2306.7,2305.6,1.49946912]
[1770153749273,0.0011,2306.7,2305.5,0.91]
[1770153749994,0.0011,2306.7,2305.5,12.71596201]
[1770153750572,0.0011,2306.7,2305.6,12.89682787]
[1770153751177,0.0011,2306.7,2305.6,12.89683345]
[1770153751384,0.0011,2306.7,2305.5,0.91656038]
[1770153751561,0.0011,2306.7,2305.5,0.91]
[1770153751759,12.95255981,2306.7,2305.5,0.31766916]
[1770153751968,13.86255981,2306.7,2305.3,0.001]
[1770153752169,0.0011,2306.7,2305.5,11.81252239]
[1770153752390,0.0011,2306.7,2305.6,0.91]
[1770153754068,0.0011,2306.7,2305.5,0.00656038]
[1770153754269,0.0011,2306.7,2305.6,0.91]
[1770153755894,12.95255981,2306.7,2305.3,0.001]
[1770153756076,12.95255981,2306.7,2305.4,0.91]
[1770153757393,0.0011,2306.7,2305.7,0.00656038]
[1770153760492,0.0011,2306.7,2305.5,0.91]
[1770153761208,0.0011,2306.7,2305.6,0.39963203]
[1770153761423,0.0011,2306.7,2305.6,0.001]
[1770153761630,0.0011,2306.5,2305.6,0.001]
[1770153761812,12.95255981,2306.5,2305.6,0.001]
[1770153762001,0.909,2306.4,2305.6,0.001]
[1770153763713,12.95145981,2306.2,2305.3,0.001]
[1770153763932,0.93574423,2306.1,2305.3,0.001]
[1770153764311,12.95145981,2306.2,2305.3,0.001]
[1770153764808,0.9356048,2306.1,2305.3,0.001]
[1770153765030,12.95145981,2306.2,2305.3,0.001]
[1770153766233,1.16794508,2306.5,2305.3,0.001]
[1770153766415,0.91,2306.4,2305.3,0.001]
[1770153766603,1.2369596,2306.3,2305.3,0.001]
[1770153766803,0.93558477,2306.2,2305.3,0.001]
[1770153767007,0.30135497,2306.3,2305.3,0.001]
[1770153767337,0.93559062,2306.2,2305.3,0.001]
[1770153767515,0.30135497,2306.3,2305.3,0.001]
[1770153767716,0.0011,2306.5,2305.4,0.40030801]
[1770153767937,0.0011,2306.5,2305.3,0.001]
[1770153767938,0.93567612,2306.4,2305.3,0.001]
[1770153768110,12.95255981,2306.5,2305.4,0.40022851]
[1770153768311,0.93582686,2306.4,2305.3,0.001]
[1770153768526,0.91,2306.3,2305.4,0.40031485]
[1770153768733,0.91,2306.3,2305.3,0.001]
[1770153769031,0.91,2306.3,2305.4,0.40041695]
[1770153769226,0.91,2306.3,2305.3,0.001]
[1770153769423,0.91,2306.3,2305.4,0.40034165]
[1770153769742,0.91,2306.3,2305.3,0.001]
[1770153769905,0.91,2306.3,2305.4,0.40033465]
[1770153770107,0.91,2306.3,2305.3,0.001]
[1770153770306,0.91,2306.3,2305.4,0.40044791]
[1770153770543,0.91,2306.3,2305.3,0.001]
[1770153770810,13.28415138,2306.2,2305.3,0.001]
[1770153771034,1.17058097,2306.5,2305.7,0.00656038]
[1770153771035,0.0011,2306.5,2305.7,0.00656038]
[1770153771333,0.0011,2306.5,2305.9,0.00656038]
[1770153772433,0.0011,2306.5,2306.0,0.39988015]
[1770153772635,0.0011,2306.7,2305.8,0.00656038]
[1770153772840,0.0011,2306.7,2306.1,0.00656038]
[1770153773140,0.0011,2306.7,2306.3,0.00656038]
[1770153773815,0.0011,2306.7,2306.2,0.00656038]
[1770153774015,0.0011,2306.7,2306.3,0.00656038]
[1770153774220,0.0011,2306.7,2305.8,1.21066082]
[1770153774424,0.0011,2306.7,2305.5,0.00656038]
[1770153774425,1.18642943,2306.7,2305.5,0.00656038]
[1770153774627,1.18642943,2306.7,2305.6,0.40587401]
[1770153774836,1.18642943,2306.7,2305.9,0.00656038]
[1770153775024,0.0011,2306.7,2306.0,0.00656038]
[1770153775223,0.0011,2306.7,2306.1,0.00756038]
[1770153775431,0.0011,2306.3,2306.1,0.00756038]
[1770153775634,0.0011,2306.7,2306.2,0.00656038]
[1770153776018,0.0011,2306.5,2306.2,0.00656038]
[1770153776595,0.0011,2306.5,2306.1,0.001]
[1770153776708,0.0011,2306.5,2306.1,0.00756038]
[1770153777036,0.0011,2306.5,2305.3,0.001]
[1770153777037,11.85109434,2306.3,2305.3,0.001]
[1770153777349,0.93529481,2306.2,2305.3,0.001]
[1770153778135,2.10477578,2306.2,2305.3,0.001]
[1770153778508,2.77874178,2306.2,2305.3,0.001]
[1770153778738,1.60926081,2306.1,2305.3,0.001]
[1770153778916,0.93529481,2306.0,2305.3,0.001]
[1770153779125,0.93529481,2305.9,2305.3,0.001]
[1770153779332,0.673966,2306.1,2305.3,0.001]
[1770153779641,0.9350614,2306.0,2305.3,0.001]
[1770153779945,0.9350614,2305.9,2305.3,0.001]
[1770153780149,1.16948097,2306.2,2305.3,0.001]
[1770153780349,0.9350613,2306.1,2305.3,0.001]
[1770153780533,0.9350613,2306.0,2305.3,0.001]
[1770153780738,13.92957531,2306.3,2305.3,0.001]
[1770153780959,0.93503403,2306.2,2305.3,0.001]
[1770153781131,0.93503403,2306.1,2305.3,0.001]
[1770153781457,0.93503403,2306.0,2305.3,0.001]
[1770153781619,13.92957531,2306.3,2305.3,0.001]
[1770153781827,0.93506589,2306.2,2305.3,0.001]
[1770153782050,1.16948097,2306.3,2305.3,0.001]
[1770153782051,0.93506589,2306.1,2305.3,0.001]
[1770153782218,1.16948097,2306.4,2305.3,0.001]
[1770153782425,0.93493493,2306.3,2305.3,0.001]
[1770153782620,0.93493493,2306.2,2305.3,0.001]
[1770153782823,2.08058097,2306.5,2305.3,0.001]
[1770153783041,1.29904098,2306.4,2305.3,0.00756038]
[1770153783251,0.93487772,2306.3,2305.3,0.00756038]
[1770153784024,0.93487772,2306.3,2305.3,0.001]
[1770153784225,12.78597206,2306.2,2305.3,0.001]
[1770153784431,0.93487772,2306.1,2305.3,0.001]
[1770153784773,0.91,2306.0,2305.3,0.001]
[1770153785057,0.93487772,2305.9,2305.3,0.001]
[1770153785424,11.85109434,2305.7,2304.1,0.001]
[1770153785628,0.1024,2305.1,2304.1,0.001]
[1770153785848,1.16948097,2304.9,2303.4,11.96949122]
[1770153786051,12.78597206,2304.8,2303.5,1.48583802]
[1770153786232,12.78597206,2304.8,2302.2,0.00656038]
[1770153786233,20.19692543,2304.1,2302.3,12.64730506]
[1770153786534,20.19692543,2304.1,2302.5,0.00656038]
[1770153786535,3.6810109,2304.0,2302.5,0.00656038]
[1770153786736,12.78597206,2303.9,2302.3,12.64730506]
[1770153787055,0.93487772,2303.8,2302.5,0.00656038]
[1770153787259,1.3955453,2303.7,2302.5,0.00656038]
[1770153787435,1.3955453,2303.7,2302.6,0.00656038]
[1770153787866,0.1024,2304.1,2302.9,0.00656038]
[1770153788159,1.38570478,2303.8,2302.5,0.91]
[1770153788340,1.38570478,2303.8,2302.7,0.00656038]
[1770153789058,12.76109434,2304.0,2302.7,0.00656038]
[1770153789257,12.76109434,2304.0,2302.8,0.00656038]
[1770153789446,1.28634943,2303.9,2302.7,0.00656038]
[1770153789853,0.1024,2304.3,2303.0,0.00656038]
[1770153790166,0.1024,2304.3,2302.8,0.00656038]
[1770153790167,0.0011,2303.7,2302.8,0.00656038]
[1770153790663,0.0011,2303.7,2302.7,0.00656038]
[1770153790866,0.0011,2303.7,2302.8,0.00656038]
[1770153791162,0.0011,2303.7,2302.7,0.00656038]
[1770153791746,0.9111,2303.7,2302.5,0.00756038]
[1770153791966,0.9111,2303.7,2302.6,0.00656038]
[1770153792152,0.9111,2303.7,2302.5,0.00756038]
[1770153792655,0.9111,2303.7,2302.5,0.001]
[1770153792853,12.76219434,2303.7,2302.5,0.001]
[1770153793030,1.38473699,2303.6,2302.5,0.001]
[1770153794073,13.23583133,2303.6,2302.5,0.001]
[1770153794279,13.77066768,2303.5,2302.5,0.001]
[1770153794484,14.42451889,2303.5,2302.5,0.001]
[1770153794686,13.77066768,2303.5,2302.5,0.001]
[1770153794870,1.46025039,2303.4,2302.5,0.001]
[1770153795072,0.73185357,2303.4,2302.5,0.001]
[1770153795593,1.56385121,2303.5,2302.5,0.001]
[1770153795961,0.91,2303.5,2302.5,0.001]
[1770153796583,0.9111,2303.7,2302.6,0.00656038]
[1770153797283,0.0011,2303.7,2302.7,0.00656038]
[1770153798362,0.0011,2303.7,2303.1,0.00656038]
[1770153798563,0.0011,2303.7,2303.2,0.00656038]
[1770153798964,0.0011,2303.7,2303.1,0.00656038]
[1770153799377,0.0011,2303.7,2303.2,0.00656038]
[1770153799590,1.39056297,2304.6,2303.5,0.00656038]
[1770153799787,1.39056297,2304.6,2303.1,0.00656038]
[1770153799788,2.12241654,2304.6,2303.1,0.91]
[1770153800088,2.12241654,2304.6,2302.8,12.65386544]
[1770153800089,12.88618956,2304.5,2302.8,12.65386544]
[1770153800397,12.88618956,2304.5,2302.8,12.64730506]
[1770153800889,0.91,2304.4,2303.0,0.00656038]
[1770153801092,0.91,2304.3,2303.1,0.00656038]
[1770153801386,0.91,2304.4,2303.2,0.00656038]
[1770153801586,2.42087502,2304.4,2303.2,0.00656038]
[1770153802617,2.42087502,2304.4,2303.3,0.00656038]
[1770153802771,1.39056297,2304.6,2303.5,0.00656038]
[1770153802975,0.0011,2304.2,2303.3,0.00656038]
[1770153803174,0.0011,2304.2,2303.4,0.00656038]
[1770153804199,0.0011,2304.2,2303.5,0.00656038]
[1770153804701,0.0011,2304.4,2303.6,12.41588569]
[1770153804888,0.0011,2304.4,2303.8,0.00656038]
[1770153805200,0.0011,2304.9,2304.0,0.00656038]
[1770153805701,0.0011,2304.9,2304.1,0.00656038]
[1770153806104,0.0011,2305.4,2304.7,0.00656038]
[1770153806397,0.0011,2305.4,2304.9,0.00656038]
[1770153806802,0.0011,2305.4,2304.7,0.91656038]
[1770153806996,0.91,2306.2,2305.0,0.00656038]
[1770153807377,0.91,2306.2,2305.1,0.00656038]
[1770153807581,0.91,2306.4,2305.1,0.00656038]
[1770153807884,1.35972426,2306.3,2305.2,0.00656038]
[1770153808207,13.59614256,2306.4,2304.9,12.40932531]
[1770153808397,12.68614256,2306.4,2304.9,12.40932531]
[1770153808603,0.91,2306.3,2305.0,0.00656038]
[1770153808802,12.68614256,2306.4,2305.1,0.00656038]
[1770153808981,13.59614256,2306.4,2305.1,0.00656038]
[1770153809309,1.35972426,2306.3,2305.1,0.00656038]
[1770153809807,1.35972426,2306.3,2304.9,12.41588569]
[1770153810007,1.35972426,2306.3,2305.0,0.00656038]
[1770153810389,1.35972426,2306.3,2305.1,0.00656038]
[1770153810818,1.35972426,2306.3,2305.3,0.00656038]
[1770153811027,0.0011,2306.5,2305.5,0.00656038]
[1770153811386,0.0011,2306.5,2305.4,0.00656038]
[1770153811682,0.0011,2306.5,2305.6,0.00656038]
[1770153811896,0.0011,2306.5,2305.5,12.41588569]
[1770153812120,0.0011,2306.5,2305.7,0.00656038]
[1770153813814,0.0011,2306.5,2305.8,0.00656038]
[1770153814017,0.0011,2306.5,2305.9,0.00656038]
[1770153814182,0.0011,2306.5,2305.8,1.24946103]
[1770153814183,0.0011,2306.7,2305.8,1.24290065]
[1770153814387,0.0011,2306.7,2305.2,0.91656038]
[1770153814388,12.68724256,2306.7,2305.2,0.91656038]
[1770153814611,12.68724256,2306.7,2305.3,0.00656038]
[1770153814806,12.68724256,2306.7,2305.2,0.91656038]
[1770153815413,0.0011,2306.3,2305.2,0.91]
[1770153816315,0.0011,2306.3,2305.5,0.00656038]
[1770153816617,0.0011,2306.3,2305.4,0.00656038]